fUST/lending_fUST_20240118
["ID","MTS","AMOUNT","RATE_DAILY","PERIOD"]
[312054061,1705584644222,-1886.138911,0.000368,2]
[312054062,1705584644235,-249.0,0.000368,2]
[312054063,1705584644248,-1273.33315359,0.000368,7]
[312054064,1705584644257,-180.05543,0.00036845,2]
[312054065,1705584644267,-153.29820472,0.00036901,7]
[312054066,1705584644276,-162.2161723,0.00036919,10]
[312054067,1705584644286,-151.0,0.0003698,4]
[312054068,1705584644295,-950.0,0.00036986,2]
[312054069,1705584644305,-4735.45627222,0.00037,8]
[312054070,1705584644314,-418.74589228,0.00037,2]
[312054071,1705584644324,-300.0,0.00037,15]
[312054072,1705584644332,-1000.0,0.00037,37]
[312054073,1705584644341,-153.29820472,0.00037049,7]
[312054074,1705584644351,-154.81467579,0.00037073,7]
[312054075,1705584644360,-242.3273115,0.000371,5]
[312054076,1705584644370,-153.29820472,0.00037111,7]
[312054077,1705584644379,-176.718193,0.00037145,2]
[312054078,1705584644389,-216.93825725,0.0003724,2]
[312054079,1705584644398,-950.0,0.0003726,2]
[312054080,1705584644407,-153.29820472,0.00037278,7]
[312054081,1705584644417,-153.29820472,0.00037329,7]
[312054082,1705584644426,-152.3738518,0.00037353,7]
[312054083,1705584644435,-153.29820472,0.00037368,7]
[312054084,1705584644444,-152.3738518,0.00037384,7]
[312054085,1705584644453,-153.29820472,0.00037448,7]
[312054086,1705584644462,-152.3738518,0.00037463,7]
[312054087,1705584644472,-152.3738518,0.00037473,7]
[312054088,1705584644481,-950.0,0.00037534,2]
[312054089,1705584644490,-492.737541,0.00037534,2]
[312054090,1705584644500,-153.29820472,0.00037559,7]
[312054091,1705584644509,-152.3738518,0.00037666,7]
[312054092,1705584644519,-151.0,0.00037727,4]
[312054093,1705584644528,-176.718193,0.00037744,2]
[312054094,1705584644537,-199.037036,0.00037744,2]
[312054095,1705584644546,-180.05543,0.00037744,2]
[312054096,1705584644555,-199.037037,0.00037744,2]
[312054097,1705584644565,-194.156523,0.00037744,2]
[312054098,1705584644574,-199.037036,0.00037744,2]
[312054099,1705584644583,-191.0,0.00037788,7]
[312054100,1705584644592,-153.29820472,0.00037791,7]
[312054101,1705584644601,-242.3273115,0.000378,5]
[312054102,1705584644610,-950.0,0.00037808,2]
[312054103,1705584644619,-172.234711,0.00037808,2]
[312054104,1705584644629,-152.3738518,0.00037815,7]
[312054105,1705584644638,-263.54542461,0.00037913,2]
[312054106,1705584644647,-153.29820472,0.00037944,7]
[312054107,1705584644657,-3921.88851521,0.00038,2]
[312054108,1705584644666,-10834.6916986,0.00038,3]
[312054109,1705584644675,-3184.89020431,0.00038,7]
[312054110,1705584644685,-2735.01959062,0.00038,14]
[312054111,1705584644694,-1000.0,0.00038,38]
[312054112,1705584644703,-200.0,0.00038,9]
[312054113,1705584644712,-950.0,0.00038082,2]
[312054114,1705584644721,-153.29820472,0.0003816,7]
[312054115,1705584644729,-152.3738518,0.00038229,7]
[312054116,1705584644738,-950.0,0.00038356,2]
[312054117,1705584644747,-492.737541,0.00038356,2]
[312054118,1705584644756,-152.3738518,0.0003847,7]
[312054119,1705584644767,-151.0,0.00038474,4]
[312054120,1705584644777,-2145.59608856,0.000385,4]
[312054121,1705584644786,-282.71519675,0.000385,8]
[312054122,1705584644795,-50000.0,0.00038588,7]
[312054123,1705584644804,-726.8795595,0.0003863,2]
[312054124,1705584644815,-152.3738518,0.0003869,7]
[312054125,1705584644824,-152.3738518,0.0003892,7]
[312054126,1705584644833,-3963.70637056,0.00039,10]
[312054127,1705584644844,-1000.0,0.00039,39]
[312054128,1705584644854,-6367.93900444,0.00039,5]
[312054129,1705584644864,-582.46443216,0.00039,5]
[312054130,1705584644874,-153.29820472,0.00039012,7]
[312054131,1705584644885,-154.81467579,0.00039032,7]
[312054132,1705584644895,-492.737541,0.00039178,2]
[312054133,1705584644905,-150.0,0.000392,7]
[312054134,1705584644915,-151.0,0.00039221,4]
[312054135,1705584644925,-17957.6498,0.00039366,7]
[312054136,1705584644935,-153.29820472,0.00039589,7]
[312054137,1705584644944,-150.30083188,0.0003973,7]
[312054138,1705584644954,-150.30083188,0.0003973,7]
[312054139,1705584644963,-150.30083188,0.0003973,7]
[312054140,1705584644973,-150.3,0.0003973,7]
[312054141,1705584644982,-150.30083188,0.0003973,7]
[312054142,1705584644991,-150.30083188,0.0003973,7]
[312054143,1705584645000,-150.30083188,0.0003973,7]
[312054144,1705584645010,-150.30083188,0.0003973,7]
[312054145,1705584645019,-150.30083188,0.0003973,7]
[312054146,1705584645028,-150.30083188,0.0003973,7]
[312054147,1705584645038,-150.30083188,0.0003973,7]
[312054148,1705584645047,-150.30083188,0.0003973,7]
[312054149,1705584645056,-150.30083188,0.0003973,7]
[312054150,1705584645070,-150.30083188,0.0003973,7]
[312054151,1705584645079,-150.30083188,0.0003973,7]
[312054152,1705584645144,-150.30083188,0.0003973,7]
[312054153,1705584645153,-150.30083188,0.0003973,7]
[312054154,1705584645163,-150.30083188,0.0003973,7]
[312054155,1705584645172,-150.30083188,0.0003973,7]
[312054156,1705584645182,-150.3,0.0003973,7]
[312054157,1705584645191,-411.45892831,0.0003973,7]
[312054158,1705584645200,-411.45892831,0.0003973,7]
[312054159,1705584645209,-411.45892831,0.0003973,7]
[312054160,1705584645218,-411.45892831,0.0003973,7]
[312054161,1705584645228,-411.45892831,0.0003973,7]
[312054162,1705584645237,-411.45892831,0.0003973,7]
[312054163,1705584645247,-411.45892831,0.0003973,7]
[312054164,1705584645258,-411.45892831,0.0003973,7]
[312054165,1705584645270,-411.45892831,0.0003973,7]
[312054166,1705584645280,-411.45892831,0.0003973,7]
[312054167,1705584645290,-411.45892831,0.0003973,7]
[312054168,1705584645300,-411.45892831,0.0003973,7]
[312054169,1705584645310,-411.45892831,0.0003973,7]
[312054170,1705584645319,-411.45892831,0.0003973,7]
[312054171,1705584645329,-411.45892831,0.0003973,7]
[312054172,1705584645338,-411.45892831,0.0003973,7]
[312054173,1705584645347,-411.45892831,0.0003973,7]
[312054174,1705584645356,-411.45892831,0.0003973,7]
[312054175,1705584645366,-411.45892831,0.0003973,7]
[312054176,1705584645375,-411.45,0.0003973,7]
[312054177,1705584645385,-1645.83571323,0.0003973,7]
[312054178,1705584645394,-1645.83571323,0.0003973,7]
[312054179,1705584645402,-1645.83571323,0.0003973,7]
[312054180,1705584645411,-1645.83571323,0.0003973,7]
[312054181,1705584645421,-1645.83571323,0.0003973,7]
[312054182,1705584645430,-1645.83571323,0.0003973,7]
[312054183,1705584645439,-1645.83571323,0.0003973,7]
[312054184,1705584645449,-1645.83571323,0.0003973,7]
[312054185,1705584645459,-1645.83571323,0.0003973,7]
[312054186,1705584645469,-1645.83571323,0.0003973,7]
[312054187,1705584645479,-1645.83571323,0.0003973,7]
[312054189,1705584645490,-1645.83571323,0.0003973,7]
[312054190,1705584645499,-1645.83571323,0.0003973,7]
[312054191,1705584645508,-1645.83571323,0.0003973,7]
[312054192,1705584645518,-1645.83571323,0.0003973,7]
[312054193,1705584645527,-1645.83571323,0.0003973,7]
[312054194,1705584645536,-1645.83571323,0.0003973,7]
[312054195,1705584645545,-1645.83571323,0.0003973,7]
[312054196,1705584645554,-1645.83571323,0.0003973,7]
[312054197,1705584645567,-1645.83,0.0003973,7]
[312054198,1705584645577,-181.66666667,0.0003973,7]
[312054199,1705584645587,-181.66666667,0.0003973,7]
[312054201,1705584645596,-181.66,0.0003973,7]
[312054203,1705584645606,-199.14077369,0.0003973,7]
[312054205,1705584645615,-199.14077369,0.0003973,7]
[312054207,1705584645624,-199.14,0.0003973,7]
[312054209,1705584645633,-152.3738518,0.00039775,7]
[312054211,1705584645642,-152.3738518,0.00039777,7]
[312054213,1705584645651,-152.37385196,0.00039793,7]
[312054215,1705584645659,-6115.03882948,0.00039942,3]
[312054217,1705584645668,-151.0,0.00039968,4]
[312054219,1705584645677,-5766.51495852,0.0003999,4]
[312054221,1705584645685,-154.95351395,0.0004,4]
[312054224,1705584645694,-1599.49641752,0.0004,4]
[312054227,1705584645702,-2500.0,0.0004,10]
[312054230,1705584645711,-290.0,0.0004,4]
[312054233,1705584645719,-500.0,0.0004,10]
[312054236,1705584645728,-737.87798092,0.0004,2]
[312054239,1705584645738,-5000.0,0.0004,2]
[312054242,1705584645747,-719.21909748,0.0004,2]
[312054244,1705584645757,-301.81412355,0.0004,2]
[312054248,1705584645767,-2716.46149718,0.0004,2]
[312054252,1705584645776,-168.18694152,0.0004,2]
[312054257,1705584645786,-154.9690062,0.0004,4]
[312054258,1705584645795,-248.0,0.0004,4]
[312054263,1705584645805,-16787.1,0.0004,10]
[312054267,1705584645816,-8893.38699722,0.0004,15]
[312054271,1705584645827,-16205.54682045,0.0004,10]
[312054275,1705584645836,-5728.54424601,0.0004,7]
[312054279,1705584645845,-2854.69846633,0.0004,2]
[312054284,1705584645858,-1816.62824705,0.0004,30]
[312054287,1705584645867,-1000.0,0.0004,40]
[312054289,1705584645876,-2000.0,0.0004,32]
[312054291,1705584645885,-492.737541,0.0004,2]
[312054294,1705584645894,-1720.5497676,0.0004,15]
[312054296,1705584645904,-18424.81526802,0.0004,15]
[312054298,1705584645913,-1322.96960089,0.0004,15]
[312054301,1705584645922,-1886.138911,0.0004,2]
[312054304,1705584645931,-1886.138911,0.0004,2]
[312054307,1705584645940,-2000.0,0.0004001,32]
[312054310,1705584645948,-2126.637763,0.0004002,32]
[312054313,1705584645958,-160.0,0.00040256,3]
[312054316,1705584645966,-1500.0,0.00040356,7]
[312054319,1705584645975,-150.93962415,0.00040408,2]
[312054321,1705584645984,-3463.55580107,0.00040536,2]
[312054324,1705584645993,-160.0,0.00040559,4]
[312054327,1705584646001,-151.0,0.00040715,21]
[312054330,1705584646010,-492.737541,0.00040822,2]
[312054332,1705584646019,-160.0,0.00040861,5]
[312054336,1705584646030,-200.0,0.00040963,2]
[312054339,1705584646039,-151.0,0.00040972,2]
[312054342,1705584646048,-244.43012,0.00040972,2]
[312054344,1705584646057,-152.118286,0.00040972,2]
[312054352,1705584646118,-991.54775,0.00040972,2]
[312054354,1705584646127,-991.54775,0.00040972,2]
[312054356,1705584646136,-25252.21489978,0.00040972,2]
[312054358,1705584646145,-200.0,0.00040974,2]
[312054359,1705584646153,-25252.21489978,0.00040977,2]
[312054361,1705584646162,-200.0,0.0004099,2]
[312054363,1705584646171,-200.0,0.00040993,2]
[312054364,1705584646180,-25252.21489978,0.00040996,2]
[312054365,1705584646189,-25252.21489978,0.00040997,2]
[312054366,1705584646198,-5000.0,0.00041,21]
[312054368,1705584646207,-198.47650434,0.00041,5]
[312054370,1705584646218,-2000.0,0.00041,15]
[312054371,1705584646227,-1000.0,0.00041,41]
[312054373,1705584646236,-1719.0,0.00041,15]
[312054375,1705584646245,-18423.0,0.00041,15]
[312054377,1705584646253,-1321.0,0.00041,15]
[312054379,1705584646262,-615.64947851,0.00041,15]
[312054381,1705584646271,-2570.0,0.00041041,14]
[312054383,1705584646280,-4070.0,0.00041041,14]
[312054385,1705584646289,-301.8792483,0.00041087,4]
[312054387,1705584646298,-1219.8350048,0.00041096,7]
[312054388,1705584646307,-35331.163784,0.00041096,15]
[312054390,1705584646316,-176.383568,0.00041096,2]
[312054392,1705584646325,-160.0,0.00041163,6]
[312054394,1705584646334,-418.571,0.00041366,30]
[312054396,1705584646343,-300.803547,0.00041462,21]
[312054398,1705584646352,-160.0,0.00041465,7]
[312054400,1705584646361,-1612.398478,0.00041553,120]
[312054402,1705584646369,-492.737541,0.00041644,2]
[312054404,1705584646378,-172.234711,0.00041644,2]
[312054406,1705584646387,-2000.0,0.00041726,15]
[312054408,1705584646396,-160.0,0.00041768,8]
[312054410,1705584646404,-603.7584966,0.00041777,7]
[312054412,1705584646413,-5000.0,0.00041788,4]
[312054414,1705584646422,-5000.0,0.000418,21]
[312054415,1705584646431,-19999.0,0.000419,14]
[312054418,1705584646440,-1000.0,0.00042,10]
[312054419,1705584646450,-187.17398668,0.00042,2]
[312054421,1705584646458,-5000.0,0.00042,21]
[312054423,1705584646467,-1997.42695966,0.00042,2]
[312054425,1705584646477,-4328.34638379,0.00042,10]
[312054427,1705584646487,-54770.0,0.00042,2]
[312054429,1705584646496,-1000.0,0.00042,42]
[312054431,1705584646505,-1886.138911,0.00042,7]
[312054433,1705584646514,-1886.138911,0.00042,7]
[312054435,1705584646524,-1817.70882,0.00042004,2]
[312054437,1705584646533,-160.0,0.0004207,9]
[312054439,1705584646542,-534.22299586,0.00042095,30]
[312054441,1705584646551,-182.85291736,0.00042095,30]
[312054443,1705584646560,-500.0,0.00042095,30]
[312054445,1705584646569,-392.73386866,0.00042095,30]
[312054447,1705584646578,-500.0,0.00042095,30]
[312054449,1705584646587,-500.0,0.00042095,30]
[312054451,1705584646596,-528.53649013,0.00042095,30]
[312054453,1705584646605,-500.0,0.00042095,30]
[312054455,1705584646614,-231.09533697,0.00042095,30]
[312054456,1705584646623,-500.0,0.00042095,30]
[312054457,1705584646632,-500.0,0.00042095,30]
[312054458,1705584646642,-500.0,0.00042095,30]
[312054459,1705584646650,-500.0,0.00042095,30]
[312054460,1705584646659,-500.0,0.00042095,30]
[312054461,1705584646668,-500.0,0.00042095,30]
[312054462,1705584646677,-500.0,0.00042095,30]
[312054463,1705584646686,-500.0,0.00042095,30]
[312054464,1705584646695,-400.0,0.00042095,30]
[312054465,1705584646704,-319.32860109,0.00042095,30]
[312054466,1705584646713,-500.0,0.00042095,30]
[312054467,1705584646723,-466.24688507,0.00042095,30]
[312054468,1705584646732,-500.0,0.00042095,30]
[312054469,1705584646745,-500.0,0.00042095,30]
[312054470,1705584646755,-607.29388138,0.00042095,30]
[312054471,1705584646764,-500.0,0.00042095,30]
[312054472,1705584646773,-386.85501273,0.00042095,30]
[312054473,1705584646783,-500.0,0.00042095,30]
[312054474,1705584646791,-500.0,0.00042095,30]
[312054475,1705584646801,-500.0,0.00042095,30]
[312054476,1705584646811,-500.0,0.00042095,30]
[312054477,1705584646820,-500.0,0.00042095,30]
[312054478,1705584646829,-500.0,0.00042095,30]
[312054479,1705584646838,-500.0,0.00042095,30]
[312054480,1705584646848,-500.0,0.00042095,30]
[312054481,1705584646861,-510.74053819,0.00042095,30]
[312054482,1705584646870,-500.0,0.00042095,30]
[312054483,1705584646879,-500.0,0.00042095,30]
[312054484,1705584646888,-500.0,0.00042095,30]
[312054485,1705584646898,-500.0,0.00042095,30]
[312054486,1705584646907,-358.0264754,0.00042095,30]
[312054487,1705584646916,-586.49875403,0.00042095,30]
[312054488,1705584646926,-447.58808292,0.00042095,30]
[312054489,1705584646935,-606.59483331,0.00042095,30]
[312054490,1705584646994,-500.0,0.00042095,30]
[312054491,1705584647003,-500.0,0.00042095,30]
[312054492,1705584647013,-500.0,0.00042095,30]
[312054493,1705584647023,-380.06568078,0.00042095,30]
[312054494,1705584647033,-229.99936212,0.00042095,30]
[312054495,1705584647042,-172.65817216,0.00042095,30]
[312054496,1705584647052,-580.0,0.00042095,30]
[312054497,1705584647062,-200.0,0.00042095,30]
[312054498,1705584647071,-499.11602117,0.00042095,30]
[312054499,1705584647081,-500.0,0.00042095,30]
[312054500,1705584647091,-263.19958387,0.00042095,30]
[312054501,1705584647100,-500.0,0.00042095,30]
[312054502,1705584647109,-271.65231733,0.00042095,30]
[312054503,1705584647119,-638.4159351,0.00042095,30]
[312054504,1705584647129,-500.0,0.00042095,30]
[312054505,1705584647138,-500.0,0.00042095,30]
[312054506,1705584647147,-500.0,0.00042095,30]
[312054507,1705584647156,-500.0,0.00042095,30]
[312054508,1705584647165,-500.0,0.00042095,30]
[312054509,1705584647175,-523.43846172,0.00042095,30]
[312054510,1705584647185,-500.0,0.00042095,30]
[312054511,1705584647194,-500.0,0.00042095,30]
[312054512,1705584647204,-500.0,0.00042095,30]
[312054513,1705584647214,-500.0,0.00042095,30]
[312054514,1705584647223,-500.0,0.00042095,30]
[312054515,1705584647233,-500.0,0.00042095,30]
[312054516,1705584647243,-151.0,0.00042095,7]
[312054517,1705584647252,-991.54775,0.00042095,7]
[312054518,1705584647261,-991.54775,0.00042095,7]
[312054519,1705584647271,-160.0,0.00042372,10]
[312054520,1705584647280,-2000.0,0.00042411,30]
[312054521,1705584647289,-250.0,0.00042499,28]
[312054522,1705584647298,-250.0,0.00042499,21]
[312054523,1705584647307,-250.0,0.00042499,14]
[312054524,1705584647316,-364.79110072,0.000425,7]
[312054525,1705584647325,-160.0,0.00042674,11]
[312054526,1705584647334,-2534.27,0.000427,2]
[312054527,1705584647344,-202382.54085254,0.000427,10]
[312054528,1705584647353,-10000.0,0.000428,14]
[312054529,1705584647362,-10000.0,0.000428,21]
[312054530,1705584647373,-1207.5169932,0.00042835,30]
[312054531,1705584647392,-777.0,0.00042871,2]
[312054532,1705584647410,-11226.75463028,0.00042886,12]
[312054533,1705584647431,-175.31411049,0.00042906,11]
[312054534,1705584647451,-160.0,0.00042977,12]
[312054535,1705584647467,-50000.0,0.00043,15]
[312054536,1705584647487,-50000.0,0.00043,20]
[312054537,1705584647505,-50000.0,0.00043,25]
[312054538,1705584647519,-1001.35650729,0.00043,15]
[312054539,1705584647541,-8500.0,0.00043,20]
[312054540,1705584647557,-1000.0,0.00043,43]
[312054541,1705584647575,-208.56,0.00043,4]
[312054542,1705584647594,-1384.71122537,0.00043005,4]
[312054543,1705584647609,-288426.46505722,0.00043006,7]
[312054544,1705584647707,-10202.84952288,0.00043006,7]
[312054545,1705584647805,-6982.81836849,0.00043006,7]
[312054546,1705584648245,-3304.17872993,0.00043006,7]
[312054547,1705584648256,-2596.70789851,0.00043006,7]
[312054548,1705584648268,-672.1242077,0.00043006,7]
[312054549,1705584648279,-514.24652146,0.00043006,7]
[312054550,1705584648526,-154.95351395,0.00017813,2]
[312054551,1705584648538,-425.62034809,0.00029544,2]
[312054552,1705584648549,-154.95351395,0.00029545,4]
[312054553,1705584648560,-217.50977533,0.00029545,2]
[312054554,1705584648570,-6662.16970126,0.0003399,3]
[312054555,1705584648581,-2780.50029874,0.0003399,3]
[312054556,1705584648590,-151.0,0.00035,2]
[312054557,1705584648599,-151.0,0.000368,2]
[312054558,1705584648609,-151.0,0.0004,2]
[312054559,1705584648618,-151.0,0.00042,7]
[312054560,1705584648631,-151.0,0.00043006,7]
[312054561,1705584648640,-151.0,0.00043006,7]
[312054562,1705584648649,-151.0,0.00043006,7]
[312054563,1705584648658,-151.0,0.00043006,7]
[312054564,1705584648667,-151.0,0.00043006,7]
[312054565,1705584648676,-24472.90309286,0.00043006,7]
[312054638,1705585755138,-154.95351395,0.00020561,4]
[312054639,1705585755158,-1218.79527931,0.00020561,2]
[312054680,1705585834127,-2001.1665667,0.00020449,2]
[312054682,1705585834137,-154.95351395,0.0002045,2]
[312054684,1705585834146,-3.60118259,0.0002045,2]
[312054689,1705585834184,-3314.14606005,0.0002045,2]
[312054946,1705585838267,-500.0,0.0002045,2]
[312054948,1705585838279,-1362.11502403,0.0002045,2]
[312054950,1705585838288,-1113.73927963,0.0002045,2]
[312054952,1705585838297,-9305.34502476,0.00020452,2]
[312054954,1705585838312,-6907.4722779,0.00020452,2]
[312054957,1705585838325,-8687.18269734,0.00020452,2]
[312054959,1705585838334,-175.31411049,0.00020461,2]
[312054961,1705585838343,-1844.52539602,0.00020561,2]
[312054963,1705585838354,-16790.49349436,0.00020561,2]
[312054965,1705585838363,-300.0,0.00020561,2]
[312054967,1705585838373,-2927.790761,0.00020567,2]
[312054969,1705585838383,-234.1198534,0.00020937,2]
[312054971,1705585838392,-1815.75822214,0.00021501,2]
[312054973,1705585838401,-327.24959811,0.00021502,2]
[312054975,1705585838410,-190.095425,0.00021503,2]
[312054977,1705585838419,-688.82709207,0.00021917,2]
[312054979,1705585838428,-166.666666,0.00021918,2]
[312054981,1705585838436,-293.23530462,0.00022,4]
[312054983,1705585838445,-166.666666,0.00022488,2]
[312054985,1705585838454,-200.0,0.00022494,7]
[312054987,1705585838463,-3000.0,0.00022541,2]
[312054989,1705585838471,-166.666666,0.00023058,2]
[312054991,1705585838481,-166.666666,0.00023628,2]
[312054993,1705585838489,-1830.62942806,0.00024,2]
[312054995,1705585838499,-4010.78536694,0.00024,2]
[312054997,1705585838507,-166.666666,0.00024198,2]
[312054999,1705585838517,-280.0,0.00024744,7]
[312055000,1705585838526,-166.666666,0.00024768,2]
[312055002,1705585838534,-497.89805688,0.0002495,5]
[312055004,1705585838544,-5920.6,0.0002498,3]
[312055006,1705585838553,-7104.72,0.0002499,3]
[312055008,1705585838562,-1045.45812768,0.00025,2]
[312055010,1705585838571,-8525.67,0.00025964,3]
[312055012,1705585838580,-4718.82684458,0.00025974,2]
[312055014,1705585838590,-526.29712741,0.00026009,2]
[312055016,1705585838599,-154.95351395,0.00027217,4]
[312055018,1705585838607,-391.0,0.00027218,15]
[312055020,1705585838616,-10519.23950179,0.00027395,2]
[312055022,1705585838625,-10003.71088846,0.00027395,2]
[312055024,1705585838635,-159.729791,0.00028139,2]
[312055026,1705585838644,-632.93759712,0.00029312,2]
[312055029,1705585838654,-223.29865064,0.00029542,2]
[312055030,1705585838663,-2455.73923901,0.00029542,2]
[312055033,1705585838672,-1754.66480127,0.00029543,2]
[312055035,1705585838681,-1825.58734011,0.00029931,4]
[312055037,1705585838691,-200.0,0.0002994,15]
[312055047,1705585838764,-348.0,0.0002994,15]
[312055049,1705585838787,-174.80766449,0.00029945,4]
[312055051,1705585838796,-66354.18413688,0.0002996,4]
[312055053,1705585838805,-682.23213824,0.0003,3]
[312055055,1705585838815,-154.95351395,0.0003,2]
[312055057,1705585838825,-687.89788967,0.0003,4]
[312055059,1705585838834,-464.23133021,0.0003,2]
[312055061,1705585838843,-293.862415,0.00030137,2]
[312055063,1705585838852,-640.81580837,0.00030347,4]
[312055065,1705585838860,-954.59776117,0.00030748,2]
[312055067,1705585838869,-880.27770498,0.00030748,2]
[312055069,1705585838880,-620.64687986,0.00030778,2]
[312055071,1705585838889,-293.862415,0.00030959,2]
[312055073,1705585838897,-2823.75361597,0.00030997,4]
[312055075,1705585838906,-587.69337227,0.00030998,4]
[312055077,1705585838915,-155.26235345,0.00030998,4]
[312055079,1705585838926,-286.06712723,0.00030998,4]
[312055081,1705585838934,-155.33021401,0.00030998,4]
[312055083,1705585838945,-631.94390066,0.00030998,2]
[312055085,1705585838954,-242.36451783,0.00030999,3]
[312055087,1705585838963,-712.59204139,0.00030999,4]
[312055089,1705585838972,-1695.03946883,0.00030999,4]
[312055091,1705585838980,-154.98450155,0.00030999,2]
[312055093,1705585838989,-81129.55401684,0.00030999,4]
[312055095,1705585839000,-97008.73081987,0.00031,4]
[312055097,1705585839009,-238.04250494,0.00031,2]
[312055099,1705585839019,-293.862415,0.00031781,2]
[312055101,1705585839028,-190.095425,0.00032255,2]
[312055103,1705585839037,-293.862415,0.00032603,2]
[312055105,1705585839047,-168.397538,0.00032877,2]
[312055107,1705585839056,-200.0,0.00032934,15]
[312055109,1705585839065,-200.0,0.00032934,15]
[312055111,1705585839074,-368.0,0.00032934,15]
[312055113,1705585839083,-386.32476631,0.00033,2]
[312055115,1705585839092,-502.016768,0.00033,3]
[312055116,1705585839101,-276.94471859,0.00033118,4]
[312055117,1705585839111,-560.83894059,0.00033318,4]
[312055118,1705585839120,-293.862415,0.00033425,2]
[312055119,1705585839130,-154.57578608,0.00033774,7]
[312055120,1705585839139,-500.0,0.00034,3]
[312055121,1705585839149,-1000.0,0.00034,7]
[312055122,1705585839158,-1550.870845,0.00034,2]
[312055123,1705585839167,-242.743,0.00034212,2]
[312055124,1705585839176,-163.0,0.00034212,2]
[312055125,1705585839185,-202.711,0.00034212,2]
[312055126,1705585839195,-293.862415,0.00034247,2]
[312055127,1705585839204,-154.57578608,0.00034476,7]
[312055128,1705585839213,-1600.0,0.0003499,6]
[312055129,1705585839223,-1810.27384144,0.00034999,7]
[312055130,1705585839233,-267.99,0.00034999,2]
[312055131,1705585839243,-267.99,0.00034999,2]
[312055132,1705585839253,-6760.97413379,0.00035,4]
[312055133,1705585839262,-155.38966053,0.00035,4]
[312055134,1705585839272,-75851.36457803,0.00035,15]
[312055135,1705585839281,-11157.84737616,0.00035,4]
[312055136,1705585839292,-3078.13460206,0.00035,4]
[312055137,1705585839301,-845.27485417,0.00035,2]
[312055138,1705585839311,-1104.18339118,0.00035,14]
[312055139,1705585839320,-2456.30202796,0.00035,15]
[312055140,1705585839332,-154.9690062,0.00035,4]
[312055141,1705585839344,-333.00867696,0.00035,4]
[312055142,1705585839354,-500.0,0.00035,3]
[312055143,1705585839364,-1500.0,0.00035,2]
[312055144,1705585839374,-150.0,0.00035,8]
[312055145,1705585839385,-201.95961414,0.00035,2]
[312055146,1705585839395,-293.862415,0.00035068,2]
[312055147,1705585839405,-1209.298859,0.00035616,120]
[312055148,1705585839415,-201.95961414,0.000357,2]
[312055149,1705585839424,-154.57578608,0.00035722,7]
[312055150,1705585839434,-153.29820472,0.00035867,7]
[312055151,1705585839443,-293.862415,0.0003589,2]
[312055152,1705585839453,-153.29820472,0.00036055,7]
[312055153,1705585839462,-153.29820472,0.0003619,7]
[312055154,1705585839472,-200.0,0.00036227,15]
[312055155,1705585839481,-200.0,0.00036227,15]
[312055156,1705585839491,-200.0,0.00036227,15]
[312055157,1705585839500,-200.0,0.00036227,15]
[312055158,1705585839510,-275.0,0.00036227,15]
[312055159,1705585839519,-201.95961414,0.000364,2]
[312055160,1705585839529,-293.862415,0.00036712,2]
[312055161,1705585839538,-154.57578608,0.00036952,7]
[312055162,1705585839548,-243.91959085,0.00036995,4]
[312055163,1705585839557,-425.62034809,0.00036995,2]
[312055164,1705585839566,-213.30248061,0.00036996,10]
[312055165,1705585839575,-678.60233026,0.00036996,4]
[312055166,1705585839584,-242.35153696,0.000371,5]
[312055167,1705585839593,-150.0,0.00037212,2]
[312055168,1705585839602,-150.0,0.00037212,2]
[312055169,1705585839611,-154.57578608,0.00037313,7]
[312055170,1705585839620,-293.862415,0.00037534,2]
[312055171,1705585839630,-154.57578608,0.00037713,7]
[312055173,1705585839639,-242.35153696,0.000378,5]
[312055175,1705585839648,-293.862415,0.00038356,2]